Workbook

Sheet D_PA_EQUI
B2: PREFEITURA MUNICIPAL DE CHAPECO
B3: CONTROLADORIA GERAL DO MUNICIPIO
B5: SISTEMA DE TRANSPORTE COLETIVO URBANO DE CHAPECÓ
B7: PASSAGEIROS TRANSPORTADOS
B9: TOTAL DO SISTEMA
B11: Período/Mês | C11: Passageiros Pagantes | G11: Soma | H11: Gratuidades | I11: Passageiros Transportados | J11: Passageiros Equivalentes | L11: QUILOMETRAGEM | P11: IPK
C12: Antecipado | D12: Embarcado | E12: Estudante | F12: Vale Transporte | L12: Km Programado | M12: Km Ocioso | N12: KM Total
B14: TARIFA | C14: 2.03 | D14: 2.3 | E14: 1 | F14: 2.03 | J14: 2.03 | M14: 0.05
B16: 2009-12-31 | C16: 300917 | D16: 139812 | E16: 76210 | F16: 470870 | G16: 987809 | H16: 125976 | I16: 1113785 | J16: 967736.5567 | L16: 397879.4 | M16: 19893.97 | N16: 417773.37 | P16: 2.316415134 | R16: 610861.51 | S16: 321567.6 | T16: 76210 | U16: 955866.1 | V16: 1964505.21 | W16: 1.76381008
B17: 2010-01-31 | C17: 108179 | D17: 274093 | E17: 2910 | F17: 423075 | G17: 808257 | H17: 87536 | I17: 895793 | J17: 843236.2167 | L17: 366206.3 | M17: 18310.315 | N17: 384516.615 | P17: 2.192977322 | R17: 219603.37 | S17: 630413.9 | T17: 2910 | U17: 858842.25 | V17: 1711769.52 | W17: 1.910898522
B18: 2010-02-28 | C18: 96766 | D18: 251868 | E18: 45097 | F18: 378933 | G18: 772664 | H18: 86297 | I18: 858961 | J18: 783281.9557 | L18: 357301.3 | M18: 17865.065 | N18: 375166.365 | P18: 2.087825639 | R18: 196434.98 | S18: 579296.4 | T18: 45097 | U18: 769233.99 | V18: 1590062.37 | W18: 1.851146175
B19: 2010-03-31 | C19: 156385 | D19: 290385 | E19: 181684 | F19: 514023 | G19: 1142477 | H19: 151955 | I19: 1294432 | J19: 1088915.143 | L19: 412104.6 | M19: 20605.23 | N19: 432709.83 | P19: 2.516501977 | R19: 317461.55 | S19: 667885.5 | T19: 181684 | U19: 1043466.69 | V19: 2210497.74 | W19: 1.707697075
B20: 2010-04-30 | C20: 144157 | D20: 246245 | E20: 166788 | F20: 469286 | G20: 1026476 | H20: 134952 | I20: 1161428 | J20: 974601.3744 | L20: 384590.7 | M20: 19229.535 | N20: 403820.235 | P20: 2.413453537 | R20: 292638.71 | S20: 566363.5 | T20: 166788 | U20: 952650.58 | V20: 1978440.79 | W20: 1.703455393
B21: 2010-05-31 | C21: 151918 | D21: 253453 | E21: 181441 | F21: 500724 | G21: 1087536 | H21: 136848 | I21: 1224384 | J21: 1029185.3 | L21: 398176.4 | M21: 19908.82 | N21: 418085.22 | P21: 2.461663917 | R21: 308393.54 | S21: 582941.9 | T21: 181441 | U21: 1016469.72 | V21: 2089246.16 | W21: 1.706365127
B22: 2010-06-30 | C22: 150048 | D22: 241811 | E22: 170006 | F22: 492224 | G22: 1054089 | H22: 139111 | I22: 1193200 | J22: 999991.8522 | L22: 390862 | M22: 19543.1 | N22: 410405.1 | P22: 2.436597041 | R22: 304597.44 | S22: 556165.3 | T22: 170006 | U22: 999214.72 | V22: 2029983.46 | W22: 1.701293547
B23: 2010-07-31 | C23: 154747 | D23: 249651 | E23: 107962 | F23: 502981 | G23: 1015341 | H23: 128725 | I23: 1144066 | J23: 993767.064 | L23: 401931.1 | M23: 20096.555 | N23: 422027.655 | P23: 2.354743942 | R23: 314136.41 | S23: 574197.3 | T23: 107962 | U23: 1021051.43 | V23: 2017347.14 | W23: 1.763313603
B24: 2010-08-31 | C24: 151888 | D24: 257748 | E24: 168231 | F24: 495192 | G24: 1073059 | H24: 137994 | I24: 1211053 | J24: 1021982.167 | L24: 397116.11 | M24: 19855.8055 | N24: 416971.9155 | P24: 2.450961634 | R24: 308332.64 | S24: 592820.4 | T24: 168231 | U24: 1005239.76 | V24: 2074623.8 | W24: 1.713074325
B25: 2010-09-30 | C25: 145294 | D25: 255592 | E25: 164715 | F25: 486808 | G25: 1052409 | H25: 139056 | I25: 1191465 | J25: 1002829.389 | L25: 395790 | M25: 19789.5 | N25: 415579.5 | P25: 2.41308676 | R25: 294946.82 | S25: 587861.6 | T25: 164715 | U25: 988220.24 | V25: 2035743.66 | W25: 1.708605507
B26: 2010-10-31 | C26: 141603 | D26: 258385 | E26: 154887 | F26: 479777 | G26: 1034652 | H26: 138434 | I26: 1173086 | J26: 990430.4926 | L26: 390902.5 | M26: 19545.125 | N26: 410447.625 | P26: 2.413049637 | R26: 287454.09 | S26: 594285.5 | T26: 154887 | U26: 973947.31 | V26: 2010573.9 | W26: 1.713918587
B27: 2010-11-30 | C27: 143339 | D27: 251090 | E27: 168470 | F27: 477273 | G27: 1040172 | H27: 141193 | I27: 1181365 | J27: 988088.3547 | L27: 380004.8 | M27: 19000.24 | N27: 399005.04 | P27: 2.476380636 | R27: 290978.17 | S27: 577507 | T27: 168470 | U27: 968864.19 | V27: 2005819.36 | W27: 1.697882839
B28: Total | C28: 1845241 | D28: 2970133 | E28: 1588401 | F28: 5691166 | G28: 12094941 | H28: 1548077 | I28: 13643018 | J28: 11684045.87 | L28: 4672865.21 | M28: 233643.2605 | N28: 4906508.47 | R28: 3745839.23 | S28: 6831305.9 | T28: 1588401 | U28: 11553066.98 | V28: 23718613.11 | W28: 1.738516588
B29: Média Mensal | C29: 153770.0833 | D29: 247511.0833 | E29: 132366.75 | F29: 474263.8333 | G29: 1007911.75 | H29: 129006.4167 | I29: 1136918.167 | J29: 973670.4889 | L29: 389405.4342 | M29: 19470.27171 | N29: 408875.7059 | P29: 2.381336125
C31: 0.133 | D31: 0.133 | E31: 0.133 | F31: 0.133 | G31: 0.98634777
C32: 2.3 | D32: 2.5 | E32: 1.1 | F32: 2.3
B33: TARIFA | C33: 2.030008826 | D33: 2.206531333 | E33: 0.9708737864 | F33: 2.030008826 | J33: 2.030008826
B35: 2009-12-31 | C35: 300917 | D35: 139812 | E35: 76210 | F35: 470870 | G35: 987809 | H35: 125976 | I35: 1113785 | J35: 967736.5567 | L35: 397879.4 | M35: 19893.97 | N35: 417773.37 | P35: 2.316415134 | R35: 610864.1659 | S35: 308499.5587 | T35: 73990.29126 | U35: 955870.256 | V35: 1949224.272 | W35: 1.750090252
B36: 2010-01-31 | C36: 108179 | D36: 274093 | E36: 2910 | F36: 423075 | G36: 808257 | H36: 87536 | I36: 895793 | J36: 843236.2167 | L36: 366206.3 | M36: 18310.315 | N36: 384516.615 | P36: 2.192977322 | R36: 219604.3248 | S36: 604794.7926 | T36: 2825.242718 | U36: 858845.9841 | V36: 1686070.344 | W36: 1.882209779
B37: 2010-02-28 | C37: 96766 | D37: 251868 | E37: 45097 | F37: 378933 | G37: 772664 | H37: 86297 | I37: 858961 | J37: 783281.9557 | L37: 357301.3 | M37: 17865.065 | N37: 375166.365 | P37: 2.087825639 | R37: 196435.8341 | S37: 555754.6337 | T37: 43783.49515 | U37: 769237.3345 | V37: 1565211.297 | W37: 1.822214626
B38: 2010-03-31 | C38: 156385 | D38: 290385 | E38: 181684 | F38: 514023 | G38: 1142477 | H38: 151955 | I38: 1294432 | J38: 1088915.143 | L38: 412104.6 | M38: 20605.23 | N38: 432709.83 | P38: 2.516501977 | R38: 317462.9303 | S38: 640743.6011 | T38: 176392.233 | U38: 1043471.227 | V38: 2178069.991 | W38: 1.682645354
B39: 2010-04-30 | C39: 144157 | D39: 246245 | E39: 166788 | F39: 469286 | G39: 1026476 | H39: 134952 | I39: 1161428 | J39: 974601.3744 | L39: 384590.7 | M39: 19229.535 | N39: 403820.235 | P39: 2.413453537 | R39: 292639.9823 | S39: 543347.308 | T39: 161930.0971 | U39: 952654.722 | V39: 1950572.109 | W39: 1.679460207
B40: 2010-05-31 | C40: 151918 | D40: 253453 | E40: 181441 | F40: 500724 | G40: 1087536 | H40: 136848 | I40: 1224384 | J40: 1029185.3 | L40: 398176.4 | M40: 19908.82 | N40: 418085.22 | P40: 2.461663917 | R40: 308394.8808 | S40: 559251.9859 | T40: 176156.3107 | U40: 1016474.139 | V40: 2060277.317 | W40: 1.682705194
B41: 2010-06-30 | C41: 150048 | D41: 241811 | E41: 170006 | F41: 492224 | G41: 1054089 | H41: 139111 | I41: 1193200 | J41: 999991.8522 | L41: 390862 | M41: 19543.1 | N41: 410405.1 | P41: 2.436597041 | R41: 304598.7643 | S41: 533563.5481 | T41: 165054.3689 | U41: 999219.0644 | V41: 2002435.746 | W41: 1.67820629
B42: 2010-07-31 | C42: 154747 | D42: 249651 | E42: 107962 | F42: 502981 | G42: 1015341 | H42: 128725 | I42: 1144066 | J42: 993767.064 | L42: 401931.1 | M42: 20096.555 | N42: 422027.655 | P42: 2.354743942 | R42: 314137.7758 | S42: 550862.7538 | T42: 104817.4757 | U42: 1021055.869 | V42: 1990873.875 | W42: 1.740173971
B43: 2010-08-31 | C43: 151888 | D43: 257748 | E43: 168231 | F43: 495192 | G43: 1073059 | H43: 137994 | I43: 1211053 | J43: 1021982.167 | L43: 397116.11 | M43: 19855.8055 | N43: 416971.9155 | P43: 2.450961634 | R43: 308333.9806 | S43: 568729.038 | T43: 163331.068 | U43: 1005244.131 | V43: 2045638.217 | W43: 1.689140126
B44: 2010-09-30 | C44: 145294 | D44: 255592 | E44: 164715 | F44: 486808 | G44: 1052409 | H44: 139056 | I44: 1191465 | J44: 1002829.389 | L44: 395790 | M44: 19789.5 | N44: 415579.5 | P44: 2.41308676 | R44: 294948.1024 | S44: 563971.7564 | T44: 159917.4757 | U44: 988224.5366 | V44: 2007061.871 | W44: 1.684532799
B45: 2010-10-31 | C45: 141603 | D45: 258385 | E45: 154887 | F45: 479777 | G45: 1034652 | H45: 138434 | I45: 1173086 | J45: 990430.4926 | L45: 390902.5 | M45: 19545.125 | N45: 410447.625 | P45: 2.413049637 | R45: 287455.3398 | S45: 570134.5984 | T45: 150375.7282 | U45: 973951.5446 | V45: 1981917.211 | W45: 1.689490123
B46: 2010-11-30 | C46: 143339 | D46: 251090 | E46: 168470 | F46: 477273 | G46: 1040172 | H46: 141193 | I46: 1181365 | J46: 988088.3547 | L46: 380004.8 | M46: 19000.24 | N46: 399005.04 | P46: 2.476380636 | R46: 290979.4351 | S46: 554037.9523 | T46: 163563.1068 | U46: 968868.4025 | V46: 1977448.897 | W46: 1.673867853
B47: Total | C47: 1845241 | D47: 2970133 | E47: 1588401 | F47: 5691166 | G47: 12094941 | H47: 1548077 | I47: 13643018 | J47: 11684045.87 | L47: 4672865.21 | M47: 233643.2605 | N47: 4906508.47 | R47: 3745855.516 | S47: 6553691.527 | T47: 1542136.893 | U47: 11553117.21 | V47: 23394801.15 | W47: 1.71478196 | X47: 0.98634777 | Y47: 0.0138411932
B48: Média Mensal | C48: 153770.0833 | D48: 247511.0833 | E48: 132366.75 | F48: 474263.8333 | G48: 1007911.75 | H48: 129006.4167 | I48: 1136918.167 | J48: 973670.4889 | L48: 389405.4342 | M48: 19470.27171 | N48: 408875.7059 | P48: 2.381336125

Sheet D_PASS
B2: PREFEITURA MUNICIPAL DE CHAPECO
B3: CONTROLADORIA GERAL DO MUNICIPIO
B5: SISTEMA DE TRANSPORTE COLETIVO URBANO DE CHAPECÓ
B7: PASSAGEIROS TRANSPORTADOS
B9: TOTAL DO SISTEMA
B11: Período/Mês | C11: Passageiros Pagantes | G11: Soma | H11: Gratuidades | I11: Passageiros Transportados | J11: Passageiros Equivalentes | L11: QUILOMETRAGEM | P11: IPK
C12: Antecipado | D12: Embarcado | E12: Estudante | F12: Vale Transporte | L12: Km Programado | M12: Km Ocioso | N12: KM Total
B14: TARIFA | C14: 2.03 | D14: 2.3 | E14: 1 | F14: 2.03 | J14: 2.03 | M14: 0.05
B16: 2009-12-31 | C16: 300917 | D16: 139812 | E16: 76210 | F16: 470870 | G16: 987809 | H16: 125976 | I16: 1113785 | J16: 967736.5567 | L16: 397879.4 | M16: 19893.97 | N16: 417773.37 | P16: 2.316415134
B17: 2010-01-31 | C17: 108179 | D17: 274093 | E17: 2910 | F17: 423075 | G17: 808257 | H17: 87536 | I17: 895793 | J17: 843236.2167 | L17: 366206.3 | M17: 18310.315 | N17: 384516.615 | P17: 2.192977322
B18: 2010-02-28 | C18: 96766 | D18: 251868 | E18: 45097 | F18: 378933 | G18: 772664 | H18: 86297 | I18: 858961 | J18: 783281.9557 | L18: 357301.3 | M18: 17865.065 | N18: 375166.365 | P18: 2.087825639
B19: 2010-03-31 | C19: 156385 | D19: 290385 | E19: 181684 | F19: 514023 | G19: 1142477 | H19: 151955 | I19: 1294432 | J19: 1088915.143 | L19: 412104.6 | M19: 20605.23 | N19: 432709.83 | P19: 2.516501977
B20: 2010-04-30 | C20: 144157 | D20: 246245 | E20: 166788 | F20: 469286 | G20: 1026476 | H20: 134952 | I20: 1161428 | J20: 974601.3744 | L20: 384590.7 | M20: 19229.535 | N20: 403820.235 | P20: 2.413453537
B21: 2010-05-31 | C21: 151918 | D21: 253453 | E21: 181441 | F21: 500724 | G21: 1087536 | H21: 136848 | I21: 1224384 | J21: 1029185.3 | L21: 398176.4 | M21: 19908.82 | N21: 418085.22 | P21: 2.461663917
B22: 2010-06-30 | C22: 150048 | D22: 241811 | E22: 170006 | F22: 492224 | G22: 1054089 | H22: 139111 | I22: 1193200 | J22: 999991.8522 | L22: 390862 | M22: 19543.1 | N22: 410405.1 | P22: 2.436597041
B23: 2010-07-31 | C23: 154747 | D23: 249651 | E23: 107962 | F23: 502981 | G23: 1015341 | H23: 128725 | I23: 1144066 | J23: 993767.064 | L23: 401931.1 | M23: 20096.555 | N23: 422027.655 | P23: 2.354743942
B24: 2010-08-31 | C24: 151888 | D24: 257748 | E24: 168231 | F24: 495192 | G24: 1073059 | H24: 137994 | I24: 1211053 | J24: 1021982.167 | L24: 397116.11 | M24: 19855.8055 | N24: 416971.9155 | P24: 2.450961634
B25: 2010-09-30 | C25: 145294 | D25: 255592 | E25: 164715 | F25: 486808 | G25: 1052409 | H25: 139056 | I25: 1191465 | J25: 1002829.389 | L25: 395790 | M25: 19789.5 | N25: 415579.5 | P25: 2.41308676
B26: 2010-10-31 | C26: 141603 | D26: 258385 | E26: 154887 | F26: 479777 | G26: 1034652 | H26: 138434 | I26: 1173086 | J26: 990430.4926 | L26: 390902.5 | M26: 19545.125 | N26: 410447.625 | P26: 2.413049637
B27: 2010-11-30 | C27: 143339 | D27: 251090 | E27: 168470 | F27: 477273 | G27: 1040172 | H27: 141193 | I27: 1181365 | J27: 988088.3547 | L27: 380004.8 | M27: 19000.24 | N27: 399005.04 | P27: 2.476380636
B28: Total | C28: 1845241 | D28: 2970133 | E28: 1588401 | F28: 5691166 | G28: 12094941 | H28: 1548077 | I28: 13643018 | J28: 11684045.87 | L28: 4672865.21 | M28: 233643.2605 | N28: 4906508.47
B29: Média Mensal | C29: 153770.0833 | D29: 247511.0833 | E29: 132366.75 | F29: 474263.8333 | G29: 1007911.75 | H29: 129006.4167 | I29: 1136918.167 | J29: 973670.4889 | L29: 389405.4342 | M29: 19470.27171 | N29: 408875.7059 | P29: 2.381336125
B31: AUTO VIAÇÃO CHAPECO
B33: 2009-12-31 | C33: 274584 | D33: 88665 | E33: 64075 | F33: 359475 | G33: 786799 | H33: 100793 | I33: 887592 | J33: 766080.9212 | L33: 324729.4 | M33: 16236.47 | N33: 340965.87 | P33: 2.246796494
B34: 2010-01-31 | C34: 83998 | D34: 230840 | E34: 2492 | F34: 319984 | G34: 637314 | H34: 69576 | I34: 706890 | J34: 666752.4433 | L34: 293056.3 | M34: 14652.815 | N34: 307709.115 | P34: 2.166827081
B35: 2010-02-28 | C35: 71265 | D35: 206546 | E35: 35689 | F35: 272840 | G35: 586340 | H35: 65838 | I35: 652178 | J35: 595703.4236 | L35: 284151.3 | M35: 14207.565 | N35: 298358.865 | P35: 1.996600381
B36: 2010-03-31 | C36: 121814 | D36: 244148 | E36: 149419 | F36: 391291 | G36: 906672 | H36: 121739 | I36: 1028411 | J36: 863331.3054 | L36: 338954.6 | M36: 16947.73 | N36: 355902.33 | P36: 2.425753452
B37: 2010-04-30 | C37: 113107 | D37: 206508 | E37: 134204 | F37: 356390 | G37: 810209 | H37: 108584 | I37: 918793 | J37: 769581.9261 | L37: 311440.7 | M37: 15572.035 | N37: 327012.735 | P37: 2.353369896
B38: 2010-05-31 | C38: 119188 | D38: 212984 | E38: 145197 | F38: 381363 | G38: 858732 | H38: 109896 | I38: 968628 | J38: 813388.5369 | L38: 325026.4 | M38: 16251.32 | N38: 341277.72 | P38: 2.38336255
B39: 2010-06-30 | C39: 117715 | D39: 202987 | E39: 136514 | F39: 372332 | G39: 829548 | H39: 111380 | I39: 940928 | J39: 787280.5468 | L39: 317712 | M39: 15885.6 | N39: 333597.6 | P39: 2.359970656
B40: 2010-07-31 | C40: 122252 | D40: 211052 | E40: 84882 | F40: 383025 | G40: 801211 | H40: 103473 | I40: 904684 | J40: 786213.7488 | L40: 328781.1 | M40: 16439.055 | N40: 345220.155 | P40: 2.277427136
B41: 2010-08-31 | C41: 118771 | D41: 217312 | E41: 135095 | F41: 373777 | G41: 844955 | H41: 111324 | I41: 956279 | J41: 805312.8276 | L41: 323966.11 | M41: 16198.3055 | N41: 340164.4155 | P41: 2.367422314
B42: 2010-09-30 | C42: 115997 | D42: 211995 | E42: 138424 | F42: 370783 | G42: 837199 | H42: 113486 | I42: 950685 | J42: 795160.5419 | L42: 322640 | M42: 16132 | N42: 338772 | P42: 2.347184956
B43: 2010-10-31 | C43: 111756 | D43: 211401 | E43: 130119 | F43: 362244 | G43: 815520 | H43: 110715 | I43: 926235 | J43: 777616.4039 | L43: 317752.5 | M43: 15887.625 | N43: 333640.125 | P43: 2.33070409
B44: 2010-11-30 | C44: 110343 | D44: 209761 | E44: 133725 | F44: 360129 | G44: 813958 | H44: 113670 | I44: 927628 | J44: 774006.6305 | L44: 306854.8 | M44: 15342.74 | N44: 322197.54 | P44: 2.402273557
B45: Total | C45: 1480790 | D45: 2454199 | E45: 1289835 | F45: 4303633 | G45: 9528457 | H45: 1240474 | I45: 10768931 | J45: 9200429.256 | L45: 2707120.7 | M45: 135356.085 | N45: 2842476.735
B46: Média Mensal | C46: 123399.1667 | D46: 204516.5833 | E46: 107486.25 | F46: 358636.0833 | G46: 794038.0833 | H46: 103372.8333 | I46: 897410.9167 | J46: 766702.438 | L46: 306854.8 | M46: 15342.74 | N46: 322197.54 | P46: 2.379603637
B48: 2011-10-31 | C48: 115997 | D48: 211995 | E48: 138424 | F48: 370783 | G48: 837199 | H48: 113486 | I48: 950685 | J48: 795160.5419 | L48: 322640 | M48: 16132 | N48: 338772 | P48: 2.347184956
B49: 2011-11-30 | C49: 111756 | D49: 211401 | E49: 130119 | F49: 362244 | G49: 815520 | H49: 110715 | I49: 926235 | J49: 777616.4039 | L49: 317752.5 | M49: 15887.625 | N49: 333640.125 | P49: 2.33070409
B50: 2011-12-31 | C50: 110343 | D50: 209761 | E50: 133725 | F50: 360129 | G50: 813958 | H50: 113670 | I50: 927628 | J50: 774006.6305 | L50: 306854.8 | M50: 15342.74 | N50: 322197.54 | P50: 2.402273557
B51: 2012-01-31 | C51: 114494 | D51: 220687 | E51: 1731 | F51: 332682 | G51: 669594 | H51: 78636 | I51: 748230 | J51: 698068.1675 | L51: 303107 | M51: 8465 | N51: 311572 | P51: 2.24047144
B52: 2012-02-29 | C52: 114801 | D52: 232993 | E52: 62058 | F52: 344221 | G52: 754073 | H52: 78039 | I52: 832112 | J52: 753574.6601 | L52: 293581 | M52: 8624 | N52: 302205 | P52: 2.493587664
B53: 2012-03-31 | C53: 126574 | D53: 241310 | E53: 176186 | F53: 399739 | G53: 943809 | H53: 92003 | I53: 1035812 | J53: 886509.5517 | L53: 327754 | M53: 10898 | N53: 338652 | P53: 2.617759682
B54: 2012-04-30 | C54: 109670 | D54: 213877 | E54: 153926 | F54: 360309 | G54: 837782 | H54: 83876 | I54: 921658 | J54: 788128.3103 | L54: 299461 | M54: 9896 | N54: 309357 | P54: 2.547633674
B55: 2012-05-31 | C55: 121952 | D55: 226312 | E55: 175312 | F55: 404086 | G55: 927662 | H55: 91437 | I55: 1019099 | J55: 868811.202 | L55: 325409 | M55: 9087 | N55: 334496 | P55: 2.597373966
B56: 2012-06-30 | C56: 110235 | D56: 209395 | E56: 147748 | F56: 368096 | G56: 835474 | H56: 81012 | I56: 916486 | J56: 788358.8325 | L56: 307422 | M56: 8466 | N56: 315888 | P56: 2.495690981
B57: 2012-07-31 | C57: 115559 | D57: 218969 | E57: 96048 | F57: 384786 | G57: 815362 | H57: 81057 | I57: 896419 | J57: 795752.2414 | L57: 307422 | M57: 8466 | N57: 315888 | P57: 2.51909614
B58: 2012-08-31 | C58: 122395 | D58: 229825 | E58: 174809 | F58: 404320 | G58: 931349 | H58: 91555 | I58: 1022904 | J58: 873220.665 | L58: 326873 | M58: 10839 | N58: 337712 | P58: 2.585696289
B59: 2012-09-30 | C59: 105244 | D59: 204655 | E59: 148785 | F59: 354280 | G59: 812964 | H59: 83118 | I59: 896082 | J59: 764692.2266 | L59: 297893 | M59: 8465 | N59: 306358 | P59: 2.496073961
B60: Total | C60: 1379020 | D60: 2631180 | E60: 1538871 | F60: 4445675 | G60: 9994746 | H60: 1098604 | I60: 11093350 | J60: 9563899.433 | L60: 3736169.3 | M60: 130568.365 | N60: 3866737.665
B61: Média Mensal | C61: 114918.3333 | D61: 219265 | E61: 128239.25 | F61: 370472.9167 | G61: 832895.5 | H61: 91550.33333 | I61: 924445.8333 | J61: 796991.6195 | L61: 311347.4417 | M61: 10880.69708 | N61: 322228.1387 | P61: 2.473376852
B63: TRANSPORTES E TURISMO TIQUIM
B65: 2009-12-31 | C65: 26333 | D65: 51147 | E65: 12135 | F65: 81395 | G65: 171010 | H65: 25183 | I65: 196193 | J65: 171655.6355 | L65: 73150 | M65: 3657.5 | N65: 76807.5 | P65: 2.23488117
B66: 2010-01-31 | C66: 24181 | D66: 43253 | E66: 418 | F66: 73091 | G66: 140943 | H66: 17960 | I66: 158903 | J66: 146483.7734 | L66: 73150 | M66: 3657.5 | N66: 76807.5 | P66: 1.907154554
B67: 2010-02-28 | C67: 25501 | D67: 45322 | E67: 9408 | F67: 76093 | G67: 156324 | H67: 20459 | I67: 176783 | J67: 157578.532 | L67: 73150 | M67: 3657.5 | N67: 76807.5 | P67: 2.05160345
B68: 2010-03-31 | C68: 34571 | D68: 46237 | E68: 32265 | F68: 92732 | G68: 205805 | H68: 30216 | I68: 236021 | J68: 195583.8374 | L68: 73150 | M68: 3657.5 | N68: 76807.5 | P68: 2.546415877
B69: 2010-04-30 | C69: 31050 | D69: 39737 | E69: 32584 | F69: 82896 | G69: 186267 | H69: 26368 | I69: 212635 | J69: 175019.4483 | L69: 73150 | M69: 3657.5 | N69: 76807.5 | P69: 2.278676539
B70: 2010-05-31 | C70: 32730 | D70: 40469 | E70: 36244 | F70: 89361 | G70: 198804 | H70: 26952 | I70: 225756 | J70: 185796.7635 | L70: 73150 | M70: 3657.5 | N70: 76807.5 | P70: 2.418992462
B71: 2010-06-30 | C71: 32333 | D71: 38824 | E71: 33492 | F71: 89892 | G71: 194541 | H71: 27731 | I71: 222272 | J71: 182711.3054 | L71: 73150 | M71: 3657.5 | N71: 76807.5 | P71: 2.378821149
B72: 2010-07-31 | C72: 32495 | D72: 38599 | E72: 23080 | F72: 89956 | G72: 184130 | H72: 25252 | I72: 209382 | J72: 177553.3153 | L72: 73150 | M72: 3657.5 | N72: 76807.5 | P72: 2.311666377
B73: 2010-08-31 | C73: 33117 | D73: 40436 | E73: 33136 | F73: 91415 | G73: 198104 | H73: 26670 | I73: 224774 | J73: 186669.3399 | L73: 73150 | M73: 3657.5 | N73: 76807.5 | P73: 2.430353024
B74: 2010-09-30 | C74: 29297 | D74: 43597 | E74: 26291 | F74: 86025 | G74: 185210 | H74: 25570 | I74: 210780 | J74: 177668.8473 | L74: 73150 | M74: 3657.5 | N74: 76807.5 | P74: 2.313170554
B75: 2010-10-31 | C75: 29847 | D75: 46984 | E75: 24768 | F75: 87533 | G75: 189132 | H75: 27719 | I75: 216851 | J75: 182814.0887 | L75: 73150 | M75: 3657.5 | N75: 76807.5 | P75: 2.380159342
B76: 2010-11-30 | C76: 32996 | D76: 41329 | E76: 34745 | F76: 87144 | G76: 196214 | H76: 27523 | I76: 223737 | J76: 184081.7241 | L76: 73150 | M76: 3657.5 | N76: 76807.5 | P76: 2.396663401
B77: Total | C77: 364451 | D77: 515934 | E77: 298566 | F77: 1027533 | G77: 2206484 | H77: 307603 | I77: 2514087 | J77: 2123616.611 | L77: 877800 | M77: 43890 | N77: 921690
B78: Média Mensal | C78: 30370.91667 | D78: 42994.5 | E78: 24880.5 | F78: 85627.75 | G78: 183873.6667 | H78: 25633.58333 | I78: 209507.25 | J78: 176968.0509 | L78: 73150 | M78: 3657.5 | N78: 76807.5 | P78: 2.304046492

Sheet apura
L1: 2.587363371 | M1: 2.072617678 | O1: 2.765770148 | P1: 2.248647352
B2: PREFEITURA MUNICIPAL DE CHAPECO
B3: CONTROLADORIA GERAL DO MUNICIPIO
B5: SISTEMA DE TRANSPORTE COLETIVO URBANO DE CHAPECÓ
B7: Discriminação | I7: Referência | L7: Empresa NOV/2010 | M7: Calculo PMC NOV/2010 | O7: Empresa SET/2012 | P7: Calculo PMC SET/2012
B9: FR | C9: FROTA
C11: FR_01 | D11: FROTA TOTAL | I11: FR_01 | J11: (IE) | L11: Quantidade | M11: Quantidade | O11: Quantidade | P11: Quantidade
D12: Micro | L12: 2 | M12: 2 | O12: 1 | P12: 1
D13: Leve | L13: 0 | M13: 0 | O13: 1 | P13: 1
D14: Pesado | L14: 70 | M14: 70 | O14: 66 | P14: 66
D15: Articulado | L15: 2 | M15: 2 | O15: 1 | P15: 1
D16: Total | L16: 74 | M16: 74 | O16: 69 | P16: 69
C18: FR_02 | D18: FROTA COMPLEMENTAR | I18: FR_02 | J18: (IE) | L18: Quantidade | M18: Quantidade | O18: Quantidade | P18: Quantidade
D19: Micro | L19: 0 | M19: 0 | O19: 0 | P19: 0
D20: Leve | L20: 0 | M20: 0 | O20: 0 | P20: 0
D21: Pesado | L21: 3 | M21: 3 | O21: 10 | P21: 10
D22: Articulado | L22: 0 | M22: 0 | O22: 0 | P22: 0
D23: Total | L23: 3 | M23: 3 | O23: 10 | P23: 10
C25: FR_03 | D25: FROTA OPERANTE | I25: FR_03 | J25: ( FS) | L25: Quantidade | M25: Quantidade | O25: Quantidade | P25: Quantidade
D26: Micro | L26: 2 | M26: 2 | O26: 1 | P26: 1
D27: Leve | L27: 0 | M27: 0 | O27: 1 | P27: 1
D28: Pesado | L28: 67 | M28: 67 | O28: 56 | P28: 56
D29: Articulado | L29: 2 | M29: 2 | O29: 1 | P29: 1
D30: Total | L30: 71 | M30: 71 | O30: 59 | P30: 59
C32: FR_04 | D32: FROTA RESERVA (5%) | I32: FR_04 | J32: (IE) | L32: Quantidade | M32: Quantidade | O32: Quantidade | P32: Quantidade
D33: Micro | L33: 0 | M33: 0 | O33: 0 | P33: 0
D34: Leve | L34: 0 | M34: 0 | O34: 0 | P34: 0
D35: Pesado | L35: 3 | M35: 3 | O35: 10 | P35: 10
D36: Articulado | L36: 0 | M36: 0 | O36: 0 | P36: 0
D37: Total | L37: 3 | M37: 3 | O37: 10 | P37: 10
C39: FR_05 | D39: FROTA BASE | I39: FR_05 | J39: ( FS) | L39: Quantidade | M39: Quantidade | O39: Quantidade | P39: Quantidade
D40: Micro | L40: 2 | M40: 2 | O40: 1 | P40: 1
D41: Leve | L41: 0 | M41: 0 | O41: 1 | P41: 1
D42: Pesado | L42: 70 | M42: 70 | O42: 66 | P42: 66
D43: Articulado | L43: 2 | M43: 2 | O43: 1 | P43: 1
D44: Total | L44: 74 | M44: 74 | O44: 69 | P44: 69
D46: VALOR DA FROTA
C48: FR_11 | D48: Valor - Onibus com Rodagem | I48: FR_11 | J48: (IE) | L48: Valor | M48: Valor | O48: Valor | P48: Valor
D49: Micro | L49: 182750.89 | M49: 182750.89 | O49: 185501.77 | P49: 185501.77
D50: Leve | L50: 0 | M50: 0 | O50: 218354 | P50: 218354
D51: Pesado | L51: 237994.5483 | M51: 237994.5483 | O51: 228656.42 | P51: 228656.42
D52: Articulado | L52: 314282.055 | M52: 314282.055 | O52: 318564.11 | P52: 318564.11
C54: FR_12 | D54: valor - Rodagem | I54: FR_12 | J54: (IE) | L54: Valor | M54: Valor | O54: Valor | P54: Valor
D55: Micro | L55: 4554 | M55: 4554 | O55: 4428 | P55: 4428
D56: Leve | L56: 0 | M56: 0 | O56: 8850 | P56: 8850
D57: Pesado | L57: 7860 | M57: 7860 | O57: 8534 | P57: 8534
D58: Articulado | L58: 13500 | M58: 13500 | O58: 14190 | P58: 14190
C60: FR_13 | D60: Onibus sem rodagem | I60: FR_13 | J60: (IE) | L60: Valor | M60: Valor | O60: Valor | P60: Valor
D61: Micro | L61: 178196.89 | M61: 178196.89 | O61: 181073.77 | P61: 181073.77
D62: Leve | L62: 0 | M62: 0 | O62: 209504 | P62: 209504
D63: Pesado | L63: 230134.5483 | M63: 230134.5483 | O63: 220122.42 | P63: 220122.42
D64: Articulado | L64: 300782.055 | M64: 300782.055 | O64: 304374.11 | P64: 304374.11
B67: KM | C67: QUILOMETRAGEM
D69: MÉDIA PERCURSO TOTAL (MÉDIA MÊS) | I69: KM_01 | J69: D_PASS | L69: KM | M69: KM | O69: KM | P69: KM
L70: 408876 | M70: 408876 | O70: 306358 | P70: 306358
C72: KM_02 | D72: PMM - PERCURSO MÉDIO MENSAL - KM/VEICULO/MÊS | I72: KM_02 | L72: KM (média) | M72: KM (média) | O72: KM (média) | P72: KM (média)
D73: KM_01 / | L73: 5759 | M73: 5759 | O73: 5193 | P73: 5193
D75: MÉDIA DIA (30 dias) | L75: 192 | M75: 192 | O75: 173 | P75: 173
D76: VELOCIDADE MÉDIA - (6 horas dia) | L76: 19.2 | M76: 32 | O76: 28.83333333 | P76: 28.83333333
B78: CA | C78: CAPITAL - REMUNERAÇÃO E DEPRECIAÇÃO
C80: CA_01 | D80: REMUNERAÇÃO - TAXA ANUAL | I80: CA_01 | L80: 0.12 | M80: 0.12 | O80: 0.12 | P80: 0.12
C81: CA_02 | D81: REMUNERAÇÃO - TAXA MENSAL | I81: CA_02 | L81: 0.009488792935 | M81: 0.009488792935 | O81: 0.009488792935 | P81: 0.009488792935
C83: CA_11 | D83: VEICULOS
D85: FROTA BASE | J85: FR_05 | L85: Quantidade | M85: Quantidade | O85: Quantidade | P85: Quantidade
D86: Micro | L86: 2 | M86: 2 | O86: 1 | P86: 1
D87: Leve | L87: 0 | M87: 0 | O87: 1 | P87: 1
D88: Pesado | L88: 70 | M88: 70 | O88: 66 | P88: 66
D89: Articulado | L89: 2 | M89: 2 | O89: 1 | P89: 1
D90: Total | L90: 74 | M90: 74 | O90: 69 | P90: 69
D92: Valor veiculo sem rodagem | J92: FR_13 | L92: Valor | M92: Valor | O92: Valor | P92: Valor
D93: Micro | L93: 178196.89 | M93: 178196.89 | O93: 181073.77 | P93: 181073.77
D94: Leve | L94: 0 | M94: 0 | O94: 209504 | P94: 209504
D95: Pesado | L95: 230134.5483 | M95: 230134.5483 | O95: 220122.42 | P95: 220122.42
D96: Articulado | L96: 300782.055 | M96: 300782.055 | O96: 304374.11 | P96: 304374.11
D98: Vida útil do veiculo (anos) | J98: (IE) | L98: Anos | M98: Anos | O98: Anos | P98: Anos
D99: Micro | M99: 10 | P99: 10
D100: Leve | M100: 10 | P100: 10
D101: Pesado | M101: 12 | P101: 12
D102: Articulado | M102: 15 | P102: 15
D104: Valor residual do veiculo (%) | J104: (IE) | L104: % | M104: % | O104: % | P104: %
D105: Micro | M105: 0.1 | P105: 0.1
D106: Leve | M106: 0.1 | P106: 0.1
D107: Pesado | M107: 0.1 | P107: 0.1
D108: Articulado | M108: 0.1 | P108: 0.1
D110: Coeficiente de Amortização/Depr Mês | J110: ( FS) | L110: Coeficiente | M110: Coeficiente | O110: Coeficiente | P110: Coeficiente
D111: Micro | M111: -0.01354412494 | P111: -0.01354412494
D112: Leve | M112: -0.01354412494 | P112: -0.01354412494
D113: Pesado | M113: -0.01243768259 | P113: -0.01243768259
D114: Articulado | M114: -0.01139776535 | P114: -0.01139776535
D116: Remuneração/Depreciação do mês | J116: ( FS) | L116: Valor | M116: Valor | O116: Valor | P116: Valor
D117: Micro | L117: 0 | M117: -4827.041885 | O117: 0 | P117: -2452.485765
D118: Leve | L118: 0 | M118: 0 | O118: 0 | P118: -2837.548352
D119: Pesado | L119: 0 | M119: -200363.8325 | O119: 0 | P119: -180695.6442
D120: Articulado | L120: 0 | M120: -6856.48657 | O120: 0 | P120: -3469.184685
D121: TOTAL REMUNERAÇÃO/DEPRECIAÇÃO DE VEICULOS | K121: CA_11 | L121: 0 | M121: -212047.3609 | O121: 0 | P121: -189454.863
C123: CA_12 | D123: OUTROS EQUIPAMENTOS
D125: Valores de investimentos | E125: Inferior | F125: Valor em Uso | G125: Superior | H125: Calculo PMC | J125: (IE) | L125: Valor | M125: Valor | O125: Valor | P125: Valor
D126: Validadores | L126: 11980.44 | M126: 11980.44 | O126: 7952.11 | P126: 11980.44
D127: Sistema Bilhetagem Eletronica | L127: 11980.44 | M127: 11980.44 | O127: 7952.11 | P127: 11980.44
D128: Sistema de Monitoramento | L128: 13757.98 | M128: 13757.98 | O128: 11963.46 | P128: 13757.98
D129: Maquinas Instalações e Equipamentos | L129: 1765.368427 | M129: 1765.368427 | O129: 1559.53896 | P129: 1559.53896
L130: 17653684.27 | M130: 17653684.27 | O130: 15595389.6 | P130: 15595389.6
D133: Vida útil (anos) | J133: (IE) | L133: Anos | M133: Anos | O133: Anos | P133: Anos
D134: Validadores | M134: 5 | P134: 5
D135: Sistema Bilhetagem Eletronica | M135: 5 | P135: 5
D136: Sistema de Monitoramento | M136: 5 | P136: 5
D137: Maquinas Instalações e Equipamentos | M137: 5 | P137: 5
D139: Valor residual (%) | J139: (IE) | L139: % | M139: % | O139: % | P139: %
D140: Validadores | M140: 0 | P140: 0
D141: Sistema Bilhetagem Eletronica | M141: 0 | P141: 0
D142: Sistema de Monitoramento | M142: 0 | P142: 0
D143: Maquinas Instalações e Equipamentos | M143: 0 | P143: 0
D145: Coeficiente de Amortização e Depr Mês | J145: ( FS) | L145: Coeficiente | M145: Coeficiente | O145: Coeficiente | P145: Coeficiente
D146: Validadores | M146: -0.02193569587 | P146: -0.02193569587
D147: Sistema Bilhetagem Eletronica | M147: -0.02193569587 | P147: -0.02193569587
D148: Sistema de Monitoramento | M148: -0.02193569587 | P148: -0.02193569587
D149: Maquinas Instalações e Equipamentos | M149: -0.02193569587 | P149: -0.02193569587
D151: Remuneração e Depreciação do mês | J151: ( FS) | L151: Valor | M151: Valor | O151: Valor | P151: Valor
D152: Validadores | L152: 0 | M152: -19447.14733 | O152: 0 | P152: -18133.15089
D153: Sistema Bilhetagem Eletronica | L153: 0 | M153: -19447.14733 | O153: 0 | P153: -18133.15089
D154: Sistema de Monitoramento | L154: 0 | M154: -22332.52402 | O154: 0 | P154: -20823.56969
D155: Maquinas Instalações e Equipamentos | L155: 0 | M155: -2865.619284 | O155: 0 | P155: -2360.46049
D156: TOTAL REMUNERAÇÃO/DEPRECIAÇÃO DE OUTROS EQUIPAMENTOS | K156: CA_12 | L156: 0 | M156: -64092.43796 | O156: 0 | P156: -59450.33196
C159: CA_13 | D159: OUTROS INVESTIMENTOS
D161: Valores de investimentos | G161: TOT ANOS | J161: (IE) | L161: Valor | M161: Valor | O161: Valor | P161: Valor
D162: Investimento Terminal e Infraestrutura | E162: AVC | F162: 2006 | G162: 20 | L162: 12056.5 | M162: 12056.5 | O162: 12056.5 | P162: 12056.5
D163: Investimento Terminal e Infraestrutura | E163: AVC | F163: 2007 | G163: 20 | L163: 138339.46 | M163: 138339.46 | O163: 138339.46 | P163: 138339.46
D164: Investimento Terminal e Infraestrutura | E164: AVC | F164: 2008 | G164: 20 | L164: 1257183.47 | M164: 1257183.47 | O164: 1257183.47 | P164: 1257183.47
D165: Investimento Terminal e Infraestrutura | E165: TTT | F165: 2006 | G165: 20 | L165: 2400 | M165: 2400 | O165: 2400 | P165: 2400
D166: Investimento Terminal e Infraestrutura | E166: TTT | F166: 2008 | G166: 20 | L166: 262227.22 | M166: 262227.22 | O166: 262227.22 | P166: 262227.22
D167: Outorga - Minima | E167: AVC | F167: 2010 | G167: 20 | L167: 4000000 | M167: 4000000 | O167: 4000000 | P167: 4000000
D168: Outorga - Minima | E168: TTT | F168: 2010 | G168: 20 | L168: 1000000 | M168: 1000000 | O168: 1000000 | P168: 1000000
D169: Outorga - Final | E169: AVC | F169: 2010 | G169: 20 | L169: 0 | M169: 0 | O169: 0 | P169: 0
D170: Outorga - Final | E170: TTT | F170: 2010 | G170: 20 | L170: 0 | M170: 0 | O170: 0 | P170: 0
D171: TOTAL | L171: 6672206.65
D173: Valores de investimentos Atualização | J173: (IE) | L173: Valor | M173: Valor | O173: Valor | P173: Valor
D174: Investimento Terminal e Infraestrutura | E174: AVC | F174: 2006 | G174: 0.233897332 | L174: 2820 | M174: 2820 | O174: 2820 | P174: 2820
D175: Investimento Terminal e Infraestrutura | E175: AVC | F175: 2007 | G175: 0.1775986099 | L175: 24569 | M175: 24569 | O175: 24569 | P175: 24569
D176: Investimento Terminal e Infraestrutura | E176: AVC | F176: 2008 | G176: 0.09792417607 | L176: 123109 | M176: 123109 | O176: 123109 | P176: 123109
D177: Investimento Terminal e Infraestrutura | E177: TTT | F177: 2006 | G177: 0.233897332 | L177: 561 | M177: 561 | O177: 561 | P177: 561
D178: Investimento Terminal e Infraestrutura | E178: TTT | F178: 2008 | G178: 0.09792417607 | L178: 25678 | M178: 25678 | O178: 25678 | P178: 25678
D179: Outorga - Minima | E179: AVC | F179: 2010 | L179: 0 | M179: 0 | O179: 0 | P179: 0
D180: Outorga - Minima | E180: TTT | F180: 2010 | L180: 0 | M180: 0 | O180: 0 | P180: 0
D181: Outorga - Final | E181: AVC | F181: 2010 | L181: 0 | M181: 0 | O181: 0 | P181: 0
D182: Outorga - Final | E182: TTT | F182: 2010 | L182: 0 | M182: 0 | O182: 0 | P182: 0
D183: TOTAL | L183: 176737
D185: Valores de investimentos | J185: (IE) | L185: Valor | M185: Valor | O185: Valor | P185: Valor
D186: Investimento Terminal e Infraestrutura | E186: AVC | F186: 2010 | G186: 4 | L186: 11901.2 | M186: 11901.2 | O186: 11901.2 | P186: 11901.2
D187: Investimento Terminal e Infraestrutura | E187: AVC | F187: 2010 | G187: 3 | L187: 138472.191 | M187: 138472.191 | O187: 138472.191 | P187: 138472.191
D188: Investimento Terminal e Infraestrutura | E188: AVC | F188: 2010 | G188: 2 | L188: 1242263.223 | M188: 1242263.223 | O188: 1242263.223 | P188: 1242263.223
D189: Investimento Terminal e Infraestrutura | E189: TTT | F189: 2010 | G189: 4 | L189: 2368.8 | M189: 2368.8
D190: Investimento Terminal e Infraestrutura | E190: TTT | F190: 2010 | G190: 2 | L190: 259114.698 | M190: 259114.698
D191: Outorga - Minima | E191: AVC | F191: 2010 | G191: 0 | L191: 4000000 | M191: 4000000 | O191: 4000000 | P191: 4000000
D192: Outorga - Minima | E192: TTT | F192: 2010 | G192: 0 | L192: 1000000 | M192: 1000000
D193: Outorga - Final | E193: AVC | F193: 2010 | G193: 0 | L193: 0 | M193: 0 | O193: 0 | P193: 0
D194: Outorga - Final | E194: TTT | F194: 2010 | G194: 0 | L194: 0 | M194: 0 | O194: 0 | P194: 0
D195: TOTAL | L195: 6654120.112
D197: Vida útil (anos) | J197: (IE) | L197: Anos | M197: Anos | O197: Anos | P197: Anos
D198: Investimento Terminal e Infraestrutura | E198: AVC | F198: 2010 | G198: 0 | M198: 10 | P198: 10
D199: Investimento Terminal e Infraestrutura | E199: AVC | F199: 2010 | G199: 0 | M199: 10 | P199: 10
D200: Investimento Terminal e Infraestrutura | E200: AVC | F200: 2010 | G200: 0 | M200: 10 | P200: 20
D201: Investimento Terminal e Infraestrutura | E201: TTT | F201: 2010 | G201: 0 | M201: 10 | P201: 20
D202: Investimento Terminal e Infraestrutura | E202: TTT | F202: 2010 | G202: 0 | M202: 10 | P202: 10
D203: Outorga - Minima | E203: AVC | F203: 2010 | G203: 0 | M203: 10 | P203: 10
D204: Outorga - Minima | E204: TTT | F204: 2010 | G204: 0 | M204: 10 | P204: 10
D205: Outorga - Final | E205: AVC | F205: 2010 | G205: 0 | M205: 10 | P205: 10
D206: Outorga - Final | E206: TTT | F206: 2010 | G206: 0 | M206: 10 | P206: 10
D208: Valor residual (%) | J208: (IE) | L208: % | M208: % | O208: % | P208: %
D209: Investimento Terminal e Infraestrutura | E209: AVC | M209: 0 | P209: 0
D210: Investimento Terminal e Infraestrutura | E210: AVC | M210: 0 | P210: 0
D211: Investimento Terminal e Infraestrutura | E211: AVC | M211: 0 | P211: 0
D212: Investimento Terminal e Infraestrutura | E212: TTT | M212: 0 | P212: 0
D213: Investimento Terminal e Infraestrutura | E213: TTT | M213: 0 | P213: 0
D214: Outorga - Minima | E214: AVC | M214: 0 | P214: 0
D215: Outorga - Minima | E215: TTT | M215: 0 | P215: 0
D216: Outorga - Final | E216: AVC | M216: 0 | P216: 0
D217: Outorga - Final | E217: TTT | M217: 0 | P217: 0
D219: Coeficiente de Amortização e Depr Mês | J219: ( FS) | L219: Coeficiente | M219: Coeficiente | O219: Coeficiente | P219: Coeficiente
D220: Investimento Terminal e Infraestrutura | E220: AVC | M220: -0.01399471739 | P220: -0.01399471739
D221: Investimento Terminal e Infraestrutura | E221: AVC | M221: -0.01399471739 | P221: -0.01399471739
D222: Investimento Terminal e Infraestrutura | E222: AVC | M222: -0.01399471739 | P222: -0.01058623352
D223: Investimento Terminal e Infraestrutura | E223: TTT | M223: -0.01399471739 | P223: -0.01058623352
D224: Investimento Terminal e Infraestrutura | E224: TTT | M224: -0.01399471739 | P224: -0.01399471739
D225: Outorga - Minima | E225: AVC | M225: -0.01399471739 | P225: -0.01399471739
D226: Outorga - Minima | E226: TTT | M226: -0.01399471739 | P226: -0.01399471739
D227: Outorga - Final | E227: AVC | M227: -0.01399471739 | P227: -0.01399471739
D228: Outorga - Final | E228: TTT | M228: -0.01399471739 | P228: -0.01399471739
D230: Remuneração e Depreciação do mês | J230: ( FS) | L230: Valor | M230: Valor | O230: Valor | P230: Valor
D231: Investimento Terminal e Infraestrutura | E231: AVC | L231: 0 | M231: -166.5539306 | O231: 0 | P231: -166.5539306
D232: Investimento Terminal e Infraestrutura | E232: AVC | L232: 0 | M232: -1937.879179 | O232: 0 | P232: -1937.879179
D233: Investimento Terminal e Infraestrutura | E233: AVC | L233: 0 | M233: -17385.12273 | O233: 0 | P233: -13150.88857
D234: Investimento Terminal e Infraestrutura | E234: TTT | L234: 0 | M234: -33.15068655 | O234: 0 | P234: 0
D235: Investimento Terminal e Infraestrutura | E235: TTT | L235: 0 | M235: -3626.236969 | O235: 0 | P235: 0
D236: Outorga - Minima | E236: AVC | L236: 0 | M236: -55978.86955 | O236: 0 | P236: -55978.86955
D237: Outorga - Minima | E237: TTT | L237: 0 | M237: -13994.71739 | O237: 0 | P237: 0
D238: Outorga - Final | E238: AVC | L238: 0 | M238: 0 | O238: 0 | P238: 0
D239: Outorga - Final | E239: TTT | L239: 0 | M239: 0 | O239: 0 | P239: 0
D240: Total | K240: CA_13 | L240: 0 | M240: -93122.53043 | O240: 0 | P240: -71234.19123
D242: MÉDIA PERCURSO TOTAL (MÉDIA MÊS) | J242: KM_01 | L242: KM | M242: KM | O242: KM | P242: KM
L243: 408876 | M243: 408876 | O243: 306358 | P243: 306358
... 250 more rows

Sheet resumo
B2: PREFEITURA MUNICIPAL DE CHAPECO
B3: CONTROLADORIA GERAL DO MUNICIPIO
C5: TRANSPORTE COLETIVO URBANO
C6: RESUMO PLANILHA APURAÇÃO DE CUSTO TARIFA
C9: Discriminação | D9: NOVEMBRO DE 2010 | G9: SETEMBRO DE 2012
D10: AVC/TTT | E10: PMC | G10: AVC | H10: PMC
C12: CUSTOS DE OPERAÇÃO | D12: Custo KM | E12: Custo KM | G12: Custo KM | H12: Custo KM
C14: FROTA BASE | D14: =+apura!L44 -> 74 | E14: =+apura!M44 -> 74 | G14: =+apura!O44 -> 69 | H14: =+apura!P44 -> 69
C15: MÉDIA PERCURSO TOTAL (KM MÉDIA MÊS) | D15: =+apura!L70 -> 408876 | E15: =+apura!M70 -> 408876 | G15: =+apura!O70 -> 306358 | H15: =+apura!P70 -> 306358
C18: CAPITAL - REMUNERAÇÃO E DEPRECIAÇÃO | D18: =SUM(D19:D21) -> 1.0146 | E18: =SUM(E19:E21) -> 0.9031156862 | G18: 1.1012 | H18: =SUM(H19:H21) -> 1.044984581
C19: Veiculos | D19: 0.6494 | E19: =+apura!M252 -> 0.5186104368 | G19: =+apura!O252 -> 0 | H19: =+apura!P252 -> 0.6184100398
C20: Validadores, SBE, SM, Maq Equip | D20: 0.1822 | E20: =+apura!M253 -> 0.1567527513 | G20: =+apura!O253 -> 0 | H20: =+apura!P253 -> 0.1940550988
C21: Outros investimentos | D21: 0.183 | E21: =+apura!M254 -> 0.2277524981 | G21: =+apura!O254 -> 0 | H21: =+apura!P254 -> 0.232519442
C23: GASTOS VARIÁVEIS | D23: =SUM(D24:D27) -> 1.415327738 | E23: =SUM(E24:E27) -> 1.285655322 | G23: =SUM(G24:G27) -> 1.539127481 | H23: =SUM(H24:H27) -> 1.361256967
C24: Combustíveis | D24: =+apura!L282 -> 0.8307790541 | E24: =+apura!M282 -> 0.8390797297 | G24: =+apura!O282 -> 0.9231985507 | H24: =+apura!P282 -> 0.885292029
C25: Lubrificantes | D25: =+apura!L297 -> 0.1053 | E25: =+apura!M297 -> 0.08775 | G25: =+apura!O297 -> 0.1113 | H25: =+apura!P297 -> 0.09275
C26: Rodagem | D26: =+apura!L357 -> 0.1353912676 | E26: =+apura!M357 -> 0.1179182574 | G26: =+apura!O357 -> 0.1381786925 | H26: =+apura!P357 -> 0.1264790188
C27: Peças e Acessórios | D27: =+apura!L385 -> 0.3438574165 | E27: =+apura!M385 -> 0.2409073346 | G27: =+apura!O385 -> 0.3664502378 | H27: =+apura!P385 -> 0.2567359196
C29: CUSTO DE PESSOAL | D29: =SUM(D34:D43) -> 2.614681294 | E29: =SUM(E34:E43) -> 2.04050318 | G29: =SUM(G34:G43) -> 3.364603972 | H29: =SUM(H34:H43) -> 2.355013536
C31: ENCARGOS DE PESSOAL | D31: =+apura!L391 -> 0.8237 | E31: =+apura!M391 -> 0.8237 | G31: =+apura!O391 -> 0.8237 | H31: =+apura!P391 -> 0.8237
C33: PESSOAL DIRETO
C34: Motorista | D34: =+apura!L452 -> 1.179849494 | E34: =+apura!M452 -> 0.8904524481 | G34: =+apura!O452 -> 1.534560704 | H34: =+apura!P452 -> 1.096114789
C35: Cobrador | D35: =+apura!L453 -> 0.6434070277 | E35: =+apura!M453 -> 0.4855902096 | G35: =+apura!O453 -> 0.7245561445 | H35: =+apura!P453 -> 0.3991199101
C36: Fiscal/Despachante | D36: =+apura!L454 -> 0.1667831268 | E36: =+apura!M454 -> 0.1644340687 | G36: =+apura!O454 -> 0.2026842999 | H36: =+apura!P454 -> 0.176673966
C37: Bilheteiro | D37: =+apura!L455 -> 0.01750630324 | E37: =+apura!M455 -> 0.01849257384 | G37: =+apura!O455 -> 0.01938495985 | H37: =+apura!P455 -> 0.0205349151
C39: PESSOAL INDIRETO
C40: Manutenção | D40: =+apura!L458 -> 0.3011318927 | E40: =+apura!M458 -> 0.233845395 | G40: =+apura!O458 -> 0.3721779163 | H40: =+apura!P458 -> 0.253866537
C41: Pessoal administrativo | D41: =+apura!L459 -> 0.2609809737 | E41: =+apura!M459 -> 0.202666009 | G41: =+apura!O459 -> 0.3225541941 | H41: =+apura!P459 -> 0.2200176654
C42: Honorários diretoria | D42: =+apura!L460 -> 0.01394065683 | E42: =+apura!M460 -> 0.01394065683 | G42: =+apura!O460 -> 0.02185687986 | H42: =+apura!P460 -> 0.02185687986
C43: Benefícios sociais | D43: =+apura!L461 -> 0.03108181943 | E43: =+apura!M461 -> 0.03108181943 | G43: =+apura!O461 -> 0.1668288734 | H43: =+apura!P461 -> 0.1668288734
C45: DESPESAS ADMINISTRATIVAS | D45: =SUM(D46:D57) -> 0.7207777077 | E45: =SUM(E46:E57) -> 0.5261757843 | G45: =SUM(G46:G57) -> 0.6467245945 | H45: =SUM(H46:H57) -> 0.6467245945
C46: Serviços de Bilhetagem Eletrônica - SBE | D46: =+apura!L471/apura!L$514 -> 0.04830860701 | E46: =+apura!M471/apura!M$514 -> 0.04830860701 | G46: =+apura!O471/apura!O$514 -> 0.04687463686 | H46: =+apura!P471/apura!P$514 -> 0.04687463686
C47: Serviços de Atendimento ao Passageiro - SAC | D47: =+apura!L472/apura!L$514 -> 0 | E47: =+apura!M472/apura!M$514 -> 0 | G47: =+apura!O472/apura!O$514 -> 0 | H47: =+apura!P472/apura!P$514 -> 0
C48: Serviço Especial de Atendimento a PPDLSevera | D48: =+apura!L473/apura!L$514 -> 0 | E48: =+apura!M473/apura!M$514 -> 0 | G48: =+apura!O473/apura!O$514 -> 0 | H48: =+apura!P473/apura!P$514 -> 0
C49: Serviço de Manutenção de Abrigos e Terminais | D49: =+apura!L474/apura!L$514 -> 0.008783102946 | E49: =+apura!M474/apura!M$514 -> 0.008783102946 | G49: =+apura!O474/apura!O$514 -> 0.0005846754451 | H49: =+apura!P474/apura!P$514 -> 0.0005846754451
C50: Despesas Administrativas Gerais | D50: =+apura!L487/apura!L$514 -> 0.3901973948 | E50: =+apura!M487/apura!M$514 -> 0.3901973948 | G50: =+apura!O487/apura!O$514 -> 0.4950866307 | H50: =+apura!P487/apura!P$514 -> 0.4950866307
C51: Encargos Financeiros | D51: =+apura!L493/apura!L$514 -> 0.2199592444 | E51: =+apura!M493/apura!M$514 -> 0.02535732105 | G51: =+apura!O493/apura!O$514 -> 0.05415533461 | H51: =+apura!P493/apura!P$514 -> 0.05415533461
C52: Outros custos operacionais | D52: =+apura!L499/apura!L$514 -> 0.01417965349 | E52: =+apura!M499/apura!M$514 -> 0.01417965349 | G52: =+apura!O499/apura!O$514 -> 0.005524778201 | H52: =+apura!P499/apura!P$514 -> 0.005524778201
C53: Despesa Anual c/Seguro Responsab. cívil | D53: =+apura!L502/apura!L$514 -> 0.03593999159 | E53: =+apura!M502/apura!M$514 -> 0.03593999159 | G53: =+apura!O502/apura!O$514 -> 0.03806548765 | H53: =+apura!P502/apura!P$514 -> 0.03806548765
C54: Despesa Anual com o Seguro Obrigatório | D54: =+apura!L503/apura!L$514 -> 0 | E54: =+apura!M503/apura!M$514 -> 0 | G54: =+apura!O503/apura!O$514 -> 0.006215440759 | H54: =+apura!P503/apura!P$514 -> 0.006215440759
C55: Despesas Anual com Emplacamento | D55: =+apura!L504/apura!L$514 -> 0.005186943393 | E55: =+apura!M504/apura!M$514 -> 0.005186943393 | G55: =+apura!O504/apura!O$514 -> 0.0009520452107 | H55: =+apura!P504/apura!P$514 -> 0.0009520452107
C56: Despesa Anual com o IPVA Por Veículo | D56: =+apura!L505/apura!L$514 -> 0.0009130722599 | E56: =+apura!M505/apura!M$514 -> 0.0009130722599 | G56: =+apura!O505/apura!O$514 -> 0 | H56: =+apura!P505/apura!P$514 -> 0
C57: Receitas Complementar | D57: =+apura!L508/apura!L$514 -> -0.002690302194 | E57: =+apura!M508/apura!M$514 -> -0.002690302194 | G57: =+apura!O508/apura!O$514 -> -0.0007344348768 | H57: =+apura!P508/apura!P$514 -> -0.0007344348768
C59: TOTAL | D59: =+D23+D29+D45+D18 -> 5.76538674 | E59: =+E23+E29+E45+E18 -> 4.755449973 | G59: =+G23+G29+G45+G18 -> 6.651656048 | H59: =+H23+H29+H45+H18 -> 5.407979678
C61: TOTAL | D61: =+D59 -> 5.76538674 | E61: =+E59 -> 4.755449973 | G61: =+G59 -> 6.651656048 | H61: =+H59 -> 5.407979678
C63: IMPOSTOS | D63: =+D59/(1-0.0365)-D59 -> 0.2184085273 | E63: =+E59/(1-0.0365)-E59 -> 0.1801493762 | G63: =+G59/(1-0.0365)-G59 -> 0.2519828186 | H63: =+H59/(1-0.0365)-H59 -> 0.2048689759
C65: CUSTO TOTAL POR QUILOMETRO | D65: =+D59+D63 -> 5.983795267 | E65: =+E59+E63 -> 4.935599349 | G65: =+G59+G63 -> 6.903638867 | H65: =+H59+H63 -> 5.612848654
C67: INDICE PASSAGEIRO QUILOMETRO | D67: =+apura!L544 -> 2.3127 | E67: =+apura!M544 -> 2.381336125 | G67: =+apura!O544 -> 2.4961 | H67: =+apura!P544 -> 2.4961
C69: VALOR DA TARIFA CÁLCULADA | D69: =+D65/D67 -> 2.587363371 | E69: =+E65/E67 -> 2.072617678 | G69: =+G65/G67 -> 2.765770148 | H69: =+H65/H67 -> 2.248647352
C72: TARIFA | D72: Março de 2010 | G72: Outubro de 2012
C74: TARIFA ANTERIOR | D74: Valor | E74: % Equiv
C75: ANTECIPADO (base) | D75: 2.03 | E75: =+D75/D$75 -> 1
C76: EMBARCADO | D76: 2.3 | E76: =+D76/D$75 -> 1.133004926
C77: ESTUDANTE | D77: 1 | E77: =+D77/D$75 -> 0.4926108374
C78: VALE TRANSPORTE | D78: =+D75 -> 2.03 | E78: =+D78/D$75 -> 1
C80: NOVA TARIFA | G80: Valor | H80: % Equiv
C81: ANTECIPADO (base) | G81: 2.2 | H81: =+G81/G$81 -> 1
C82: EMBARCADO | G82: 2.5 | H82: =+G82/G$81 -> 1.136363636
C83: ESTUDANTE | G83: 1.1 | H83: =+G83/G$81 -> 0.5
C84: VALE TRANSPORTE | G84: =+G81 -> 2.2 | H84: =+G84/G$81 -> 1
